bitfinex/quotes_BTCUSD_20250218
["timestamp","ask_amount","ask_price","bid_price","bid_amount"]
[1739849862197,1.98066538,96472.0,96471.0,0.07966156]
[1739849862395,0.92739738,96472.0,96471.0,0.07966156]
[1739849862594,0.01641238,96472.0,96471.0,0.07966156]
[1739849862818,2.21307938,96472.0,96471.0,0.07966156]
[1739849863038,1.25339038,96472.0,96471.0,0.07966156]
[1739849863203,2.21781089,96472.0,96471.0,0.07966156]
[1739849863403,2.21770789,96472.0,96471.0,0.07966156]
[1739849864972,2.20631189,96472.0,96471.0,0.07966156]
[1739849867403,2.03108489,96472.0,96471.0,0.07966156]
[1739849867604,1.56367389,96472.0,96471.0,0.07966156]
[1739849867955,1.32425006,96472.0,96471.0,0.07966156]
[1739849868360,1.72538,96472.0,96471.0,0.07966156]
[1739849868566,0.7673009,96472.0,96471.0,0.07966156]
[1739849868817,0.804673,96472.0,96471.0,0.07966156]
[1739849871413,0.8048433,96472.0,96471.0,0.07966156]
[1739849879086,0.2962033,96472.0,96471.0,0.07966156]
[1739849879259,0.0001703,96472.0,96471.0,0.07966156]
[1739849879639,2.0403903,96472.0,96471.0,0.07966156]
[1739849879961,2.0415603,96472.0,96471.0,0.07966156]
[1739849880364,2.0104033,96472.0,96471.0,0.07966156]
[1739849880582,1.7487373,96472.0,96471.0,0.07966156]
[1739849881608,1.6799183,96472.0,96471.0,0.07966156]
[1739849881842,1.6238933,96472.0,96471.0,0.07966156]
[1739849884259,1.3738173,96472.0,96471.0,0.07966156]
[1739849885978,0.7048233,96472.0,96471.0,0.07966156]
[1739849886519,0.6388423,96472.0,96471.0,0.07966156]
[1739849888074,0.4356183,96472.0,96471.0,0.07966156]
[1739849889240,0.1286043,96472.0,96471.0,0.07966156]
[1739849889447,0.0001703,96472.0,96471.0,0.07966156]
[1739849890203,0.0001703,96472.0,96471.0,0.33765221]
[1739849894806,0.0001703,96472.0,96471.0,0.18216521]
[1739849897088,1.274039,96472.0,96471.0,0.18216521]
[1739849897442,0.207298,96479.0,96471.0,0.07966156]
[1739849897643,1.914354,96478.0,96471.0,0.07966156]
[1739849897861,0.155481,96475.0,96471.0,0.07966156]
[1739849898172,1.816199,96474.0,96471.0,0.07966156]
[1739849898399,1.816199,96474.0,96471.0,0.07866156]
[1739849898862,0.297834,96474.0,96472.0,0.12550365]
[1739849899071,2.398021,96480.0,96473.0,0.0763]
[1739849899275,2.208095,96479.0,96473.0,0.0763]
[1739849899480,0.155477,96477.0,96473.0,0.0763]
[1739849899694,2.671626,96476.0,96473.0,0.0763]
[1739849900055,1.042682,96476.0,96473.0,0.0763]
[1739849900279,2.68904,96476.0,96473.0,0.0763]
[1739849901274,0.207301,96478.0,96473.0,0.0763]
[1739849901479,3.214282,96477.0,96473.0,0.0763]
[1739849901716,0.155481,96475.0,96473.0,0.0773]
[1739849901915,2.898534,96474.0,96473.0,0.0773]
[1739849902097,3.11579,96476.0,96473.0,0.0763]
[1739849902336,3.132139,96476.0,96473.0,0.0763]
[1739849903249,3.076546,96476.0,96473.0,0.0773]
[1739849903428,2.472803,96475.0,96473.0,0.0763]
[1739849903651,1.04731,96475.0,96473.0,0.0763]
[1739849903823,2.503959,96475.0,96473.0,0.0763]
[1739849903993,2.604102,96476.0,96473.0,0.0763]
[1739849904358,2.604102,96476.0,96473.0,0.0773]
[1739849904509,2.373098,96475.0,96473.0,0.0773]
[1739849904860,2.373098,96475.0,96473.0,0.0763]
[1739849905085,2.313597,96475.0,96473.0,0.0773]
[1739849905286,1.797172,96475.0,96473.0,0.0773]
[1739849905499,0.684437,96474.0,96473.0,0.0773]
[1739849905706,0.878822,96474.0,96473.0,0.0783]
[1739849905933,1.563259,96474.0,96473.0,0.0783]
[1739849906067,2.142142,96475.0,96473.0,0.0783]
[1739849906274,2.297622,96475.0,96473.0,0.0783]
[1739849906593,1.968694,96474.0,96473.0,0.0773]
[1739849906831,1.968694,96474.0,96473.0,0.0783]
[1739849907039,1.968694,96474.0,96473.0,0.0773]
[1739849907241,1.968694,96474.0,96473.0,0.0763]
[1739849907448,1.968694,96474.0,96473.0,0.0773]
[1739849907971,1.951007,96474.0,96473.0,0.0773]
[1739849908148,1.752203,96474.0,96473.0,0.0773]
[1739849908951,1.752203,96474.0,96473.0,0.0783]
[1739849909295,1.752203,96474.0,96473.0,0.0773]
[1739849909532,1.752203,96474.0,96473.0,0.0783]
[1739849910348,2.176851,96475.0,96473.0,0.0783]
[1739849910756,1.053097,96475.0,96473.0,0.0783]
[1739849911020,2.176851,96475.0,96473.0,0.0773]
[1739849911267,2.332331,96475.0,96473.0,0.0773]
[1739849911421,1.118244,96474.0,96473.0,0.0793]
[1739849911619,1.970108,96474.0,96473.0,0.0793]
[1739849911866,1.918278,96474.0,96473.0,0.0773]
[1739849912058,1.918278,96474.0,96473.0,0.0763]
[1739849912320,1.918278,96474.0,96473.0,0.0773]
[1739849912733,1.918278,96474.0,96473.0,0.0763]
[1739849912959,1.918278,96474.0,96473.0,0.0773]
[1739849913777,1.918278,96474.0,96473.0,0.0783]
[1739849914359,1.918278,96474.0,96473.0,0.0773]
[1739849914564,1.918278,96474.0,96473.0,0.0793]
[1739849915088,1.918278,96474.0,96473.0,0.0763]
[1739849915415,1.918278,96474.0,96473.0,0.0803]
[1739849917239,1.918278,96474.0,96473.0,0.1033]
[1739849918526,1.918278,96474.0,96473.0,0.1036404]
[1739849922245,1.899866,96474.0,96473.0,0.1036404]
[1739849923481,1.744384,96474.0,96473.0,0.1036404]
[1739849923702,0.835483,96474.0,96473.0,0.1036404]
[1739849923909,0.15548,96475.0,96474.0,0.023]
[1739849924130,0.21264,96475.0,96474.0,0.023]
[1739849924892,2.351256,96475.0,96474.0,0.023]
[1739849925033,2.294096,96475.0,96474.0,0.023]
[1739849925232,2.26294,96475.0,96474.0,0.025]
[1739849926764,2.26294,96475.0,96474.0,0.027]
[1739849927814,2.26294,96475.0,96474.0,0.004]
[1739849928930,2.26294,96475.0,96474.0,0.002]
[1739849929330,2.044136,96475.0,96474.0,0.002]
[1739849929715,0.155482,96474.0,96473.0,0.0003404]
[1739849929897,1.291271,96474.0,96473.0,0.0787404]
[1739849932269,1.291271,96474.0,96473.0,0.0817404]
[1739849932649,1.291271,96474.0,96473.0,0.0837404]
[1739849944581,1.050654,96474.0,96473.0,0.0837404]
[1739849945186,0.362037,96474.0,96473.0,0.0837404]
[1739849945823,0.155482,96474.0,96473.0,0.0837404]
[1739849946261,0.368269,96474.0,96473.0,0.0837404]
[1739849946801,0.621825,96474.0,96473.0,0.0837404]
[1739849946938,2.015916,96474.0,96473.0,0.0837404]
[1739849947138,1.98476,96474.0,96473.0,0.0837404]
[1739849951073,1.98476,96474.0,96473.0,0.0787404]
[1739849951467,1.98476,96474.0,96473.0,0.0797404]
[1739849952084,0.878245,96474.0,96473.0,0.0787404]
[1739849952289,2.335434,96474.0,96473.0,0.0807404]
[1739849952499,1.609554,96474.0,96473.0,0.0807404]
[1739849952708,1.168573,96474.0,96473.0,0.0807404]
[1739849952907,2.622645,96474.0,96473.0,0.0807404]
[1739849953111,2.622645,96474.0,96473.0,0.0827404]
[1739849956958,2.604782,96474.0,96473.0,0.0827404]
[1739849957837,2.40109235,96474.0,96473.0,0.0827404]
[1739849958008,0.96488335,96474.0,96473.0,0.0827404]
[1739849958374,2.40943,96474.0,96473.0,0.0827404]
[1739849958824,2.524488,96474.0,96473.0,0.0827404]
[1739849959203,2.144057,96474.0,96473.0,0.0827404]
[1739849965790,2.1442273,96474.0,96473.0,0.0827404]
[1739849967319,0.7390423,96474.0,96473.0,0.0827404]
[1739849967457,0.7390423,96474.0,96473.0,0.0807404]
[1739849967663,0.7390423,96474.0,96473.0,0.0787404]
[1739849967864,2.2587093,96474.0,96473.0,0.0817404]
[1739849968064,2.2587093,96474.0,96473.0,0.0837404]
[1739849969894,2.1064393,96474.0,96473.0,0.0837404]
[1739849971592,2.1064393,96474.0,96473.0,0.0807404]
[1739849971782,2.1064393,96474.0,96473.0,0.0787404]
[1739849972705,2.1064393,96474.0,96473.0,0.0797404]
[1739849973277,2.1064393,96474.0,96473.0,0.0827404]
[1739849973723,2.1064393,96474.0,96473.0,0.0797404]
[1739849974110,2.1064393,96474.0,96473.0,0.0807404]
[1739849977256,2.11102084,96474.0,96473.0,0.0807404]
[1739849977686,2.07298384,96474.0,96473.0,0.0807404]
[1739849979460,0.52605284,96474.0,96473.0,0.0807404]
[1739849980349,0.52605284,96474.0,96473.0,0.0797404]
[1739849980689,0.52605284,96474.0,96473.0,0.0807404]
[1739849980975,0.52605284,96474.0,96473.0,0.0817404]
[1739849981356,0.52605284,96474.0,96473.0,0.0807404]
[1739849981589,0.52605284,96474.0,96473.0,0.0827404]
[1739849982351,0.52605284,96474.0,96473.0,0.0807404]
[1739849982673,0.52605284,96474.0,96473.0,0.0827404]
[1739849983654,0.00475184,96474.0,96473.0,0.0827404]
[1739849983871,1.35634984,96474.0,96473.0,0.0827404]
[1739849984096,1.31968384,96474.0,96473.0,0.0827404]
[1739849985262,2.14680084,96474.0,96473.0,0.0827404]
[1739849986011,1.99131884,96474.0,96473.0,0.0827404]
[1739849991795,2.14680084,96474.0,96473.0,0.0827404]
[1739849995367,1.99131884,96474.0,96473.0,0.0827404]
[1739849996112,1.99131884,96474.0,96473.0,0.0807404]
[1739849996548,1.99131884,96474.0,96473.0,0.0827404]
[1739849997171,1.99131884,96474.0,96473.0,0.0807404]
[1739849998089,1.99131884,96474.0,96473.0,0.0827404]
[1739849999330,2.14680084,96474.0,96473.0,0.0827404]
[1739850000046,2.17752253,96474.0,96473.0,0.0043404]
[1739850000764,2.17752253,96474.0,96473.0,0.0023404]
[1739850001248,2.17752253,96474.0,96473.0,0.0033404]
[1739850001534,2.14680084,96474.0,96473.0,0.0023404]
[1739850001772,2.14680084,96474.0,96473.0,0.0003404]
[1739850002031,2.14680084,96474.0,96473.0,0.0013404]
[1739850002458,2.14680084,96474.0,96473.0,0.0003404]
[1739850005632,2.17752253,96474.0,96473.0,0.0003404]
[1739850006219,1.89644293,96474.0,96473.0,0.0003404]
[1739850006573,1.8918779,96474.0,96473.0,0.0003404]
[1739850009075,0.85783869,96474.0,96473.0,0.0003404]
[1739850009280,4.65918469,96474.0,96473.0,0.0003404]
[1739850009480,5.82358469,96474.0,96473.0,0.0003404]
[1739850009684,3.93562269,96474.0,96473.0,0.0003404]
[1739850009997,5.82358469,96474.0,96473.0,0.0003404]
[1739850012259,5.97358469,96474.0,96473.0,0.0003404]
[1739850012579,6.00491849,96474.0,96473.0,0.0003404]
[1739850012916,6.10742214,96474.0,96473.0,0.0003404]
[1739850013400,0.17,96471.0,96468.0,0.0003006]
[1739850013556,0.305511,96456.0,96442.0,0.0804]
[1739850013730,6.07175719,96456.0,96442.0,0.0804]
[1739850013937,6.07175719,96456.0,96437.0,0.1263]
[1739850014980,6.07375719,96456.0,96437.0,0.1263]
[1739850015186,6.04259369,96456.0,96437.0,0.1263]
[1739850015384,5.80760669,96456.0,96437.0,0.1263]
[1739850015589,5.21817169,96456.0,96455.0,0.00143212]
[1739850015792,4.214864,96456.0,96455.0,0.00143212]
[1739850015998,1.212589,96456.0,96455.0,0.00143212]
[1739850016198,0.704869,96456.0,96455.0,0.05083212]
[1739850016421,0.124303,96456.0,96455.0,0.05083212]
[1739850016778,0.002,96456.0,96455.0,0.04983212]
[1739850017189,0.005,96456.0,96455.0,0.04983212]
[1739850017565,0.977892,96456.0,96455.0,0.04983212]
[1739850017769,0.982892,96456.0,96455.0,0.04983212]
[1739850018175,0.978892,96456.0,96455.0,0.04983212]
[1739850018381,0.979892,96456.0,96455.0,0.04983212]
[1739850019040,1.129892,96456.0,96455.0,0.04983212]
[1739850019250,3.124557,96456.0,96455.0,0.00043212]
[1739850019686,3.15527869,96456.0,96455.0,0.00043212]
[1739850020091,2.95023209,96456.0,96455.0,0.00043212]
[1739850020717,2.98139559,96456.0,96455.0,0.00043212]
[1739850021505,2.95023209,96456.0,96455.0,0.00043212]
[1739850024763,2.95023209,96456.0,96455.0,0.00323212]
[1739850026152,3.15591209,96456.0,96455.0,0.00323212]
[1739850027491,1.16124709,96456.0,96455.0,0.00323212]
[1739850027779,3.96632909,96456.0,96455.0,0.00323212]
[1739850028580,3.92576309,96456.0,96455.0,0.00323212]
[1739850028909,4.08127409,96456.0,96455.0,0.00323212]
[1739850033055,4.11243759,96456.0,96455.0,0.00323212]
[1739850033234,4.08127409,96456.0,96455.0,0.00323212]
[1739850035837,4.08144439,96456.0,96455.0,0.00323212]
[1739850037343,3.7991752,96456.0,96455.0,0.00323212]
[1739850037756,3.8303387,96456.0,96455.0,0.00323212]
[1739850037977,1.0658227,96456.0,96455.0,0.00323212]
[1739850038216,0.57524649,96456.0,96455.0,0.00323212]
[1739850038595,4.53798299,96456.0,96455.0,0.00323212]
[1739850038772,4.25434499,96456.0,96455.0,0.00323212]
[1739850040690,0.15,96455.0,96445.0,0.0495]
[1739850040871,0.305527,96446.0,96445.0,0.0495]
[1739850041005,3.443168,96446.0,96445.0,0.0495]
[1739850041214,4.781587,96446.0,96445.0,0.0495]
[1739850041418,4.781586,96446.0,96445.0,0.0495]
[1739850042439,4.51818,96446.0,96445.0,0.0515]
[1739850042635,4.51818,96446.0,96445.0,0.0545]
[1739850043267,4.51818,96446.0,96445.0,0.0515]
[1739850043438,4.491989,96446.0,96445.0,0.0515]
[1739850043783,3.42452,96446.0,96445.0,0.0495]
[1739850043981,3.42552,96446.0,96445.0,0.0495]
[1739850044610,2.818315,96446.0,96445.0,0.0495]
[1739850044811,2.817315,96446.0,96445.0,0.0495]
[1739850045017,2.616117,96446.0,96445.0,0.0495]
[1739850045251,2.579121,96446.0,96445.0,0.0495]
[1739850045610,2.580121,96446.0,96445.0,0.0495]
[1739850046139,2.569727,96446.0,96445.0,0.0495]
[1739850048711,2.554411,96446.0,96445.0,0.0495]
[1739850048933,1.552647,96446.0,96445.0,0.0498406]
[1739850049158,0.44983,96446.0,96445.0,0.1252406]
[1739850049557,0.307527,96446.0,96445.0,0.1252406]
[1739850050019,0.594909,96446.0,96445.0,0.1252406]
[1739850050252,0.797387,96446.0,96445.0,0.1252406]
[1739850050601,0.721458,96446.0,96445.0,0.1252406]
[1739850050803,0.722458,96446.0,96445.0,0.1252406]
[1739850051411,0.721458,96446.0,96445.0,0.1252406]
[1739850061930,0.464241,96446.0,96445.0,0.1252406]
[1739850063343,0.948912,96446.0,96445.0,0.1252406]
[1739850063588,1.427496,96446.0,96445.0,0.1252406]
[1739850063756,0.305527,96446.0,96445.0,0.1252406]
[1739850064022,1.276952,96446.0,96445.0,0.1252406]
[1739850064244,2.40996366,96446.0,96445.0,0.1252406]
[1739850064455,2.351863,96446.0,96445.0,0.1252406]
[1739850064806,1.126952,96446.0,96445.0,0.1252406]
[1739850065022,0.375659,96446.0,96445.0,0.1252406]
[1739850066411,0.0001702,96455.0,96447.0,0.023]
[1739850066631,0.155517,96452.0,96450.0,0.0756]
[1739850066846,0.207353,96454.0,96451.0,0.023]
[1739850067071,0.101247,96453.0,96452.0,0.1248]
[1739850067350,0.10142,96454.0,96452.0,0.1248]
[1739850067519,0.0001702,96455.0,96453.0,0.0756]
[1739850068244,0.0001702,96455.0,96454.0,0.0762]
[1739850068358,0.0001702,96455.0,96454.0,0.40311765]
[1739850068775,0.0001702,96455.0,96454.0,0.24760365]
[1739850068985,0.0011702,96455.0,96454.0,0.24760365]
[1739850069181,0.0001702,96455.0,96454.0,0.24760365]
[1739850069611,0.0001702,96455.0,96454.0,0.24960365]
[1739850069855,0.0001702,96455.0,96454.0,0.25260365]
[1739850072126,0.0001702,96455.0,96454.0,0.40811765]
[1739850072547,0.0001702,96455.0,96454.0,0.25260365]
[1739850083576,0.155506,96459.0,96456.0,0.0813]
[1739850083885,0.155506,96459.0,96458.0,0.1043]
[1739850084093,0.311615,96461.0,96459.0,0.023]
[1739850084298,0.155504,96461.0,96460.0,0.1043]
[1739850084501,0.305502,96462.0,96460.0,0.1043]
[1739850084650,0.15,96462.0,96460.0,0.1043]
[1739850084850,0.15,96462.0,96461.0,0.0813]
[1739850085696,0.15,96463.0,96462.0,0.1497]
[1739850085927,0.0001703,96468.0,96462.0,0.1497]
[1739850085928,0.155494,96467.0,96462.0,0.1497]
[1739850086073,0.0001703,96468.0,96464.0,0.023]
[1739850086254,0.1556623,96468.0,96465.0,0.0768]
[1739850086980,0.155494,96467.0,96465.0,0.0768]
[1739850088621,0.155494,96467.0,96465.0,0.0778]
[1739850088957,0.155494,96467.0,96465.0,0.0788]
[1739850091069,1.12965,96466.0,96465.0,0.1018]
[1739850091921,1.12965,96466.0,96465.0,0.1008]
[1739850092419,1.12965,96466.0,96465.0,0.0998]
[1739850092620,0.88077473,96466.0,96465.0,0.1008]
[1739850093142,0.88077473,96466.0,96465.0,0.1018]
[1739850098291,0.88077473,96466.0,96465.0,0.1021404]
[1739850098621,0.88094493,96466.0,96465.0,0.1021404]
[1739850099839,1.03643993,96466.0,96465.0,0.1021404]
[1739850100174,1.03643993,96466.0,96465.0,0.0791404]
[1739850100385,1.03643993,96466.0,96465.0,0.0023404]
[1739850101133,0.33402122,96466.0,96465.0,0.0023404]
[1739850101344,5.33335572,96466.0,96465.0,0.0023404]
[1739850101547,5.30219222,96466.0,96465.0,0.0023404]
[1739850101946,5.30219222,96466.0,96465.0,0.0013404]
[1739850102790,5.30219222,96466.0,96465.0,0.0003404]
[1739850102791,4.5551342,96466.0,96465.0,0.0003404]
[1739850103191,3.1260462,96466.0,96465.0,0.0003404]
[1739850103754,3.1290462,96466.0,96465.0,0.0003404]
[1739850104010,3.1270462,96466.0,96465.0,0.0003404]
[1739850104416,3.1290462,96466.0,96465.0,0.0003404]
[1739850108434,1.4624372,96466.0,96465.0,0.0003404]
[1739850108613,0.3106652,96466.0,96465.0,0.0003404]
[1739850108819,4.9359962,96466.0,96465.0,0.0003404]
[1739850109017,5.0085282,96466.0,96465.0,0.0003404]
[1739850109221,4.6250842,96466.0,96465.0,0.0003404]
[1739850110632,4.64539999,96466.0,96465.0,0.0003404]
[1739850113183,4.6026992,96466.0,96465.0,0.0003404]
[1739850115147,4.1198382,96466.0,96465.0,0.0003404]
[1739850117374,4.3254782,96466.0,96465.0,0.0003404]
[1739850120707,3.9641402,96466.0,96465.0,0.0003404]
[1739850121015,3.7628442,96466.0,96465.0,0.0003404]
[1739850121613,1.2897732,96466.0,96465.0,0.1267404]
[1739850122190,1.2877732,96466.0,96465.0,0.1267404]
[1739850122391,1.2847732,96466.0,96465.0,0.1267404]
[1739850122591,1.2867732,96466.0,96465.0,0.1267404]
[1739850123006,1.2847732,96466.0,96465.0,0.1267404]
[1739850123168,1.31312922,96466.0,96465.0,0.0003404]
[1739850123371,1.31512922,96466.0,96465.0,0.0003404]
[1739850123811,1.31712922,96466.0,96465.0,0.0003404]
[1739850124017,1.31512922,96466.0,96465.0,0.0003404]
[1739850124451,1.31712922,96466.0,96465.0,0.0003404]
[1739850124771,1.31312922,96466.0,96465.0,0.0003404]
[1739850125193,1.31512922,96466.0,96465.0,0.0003404]
[1739850125402,1.31712922,96466.0,96465.0,0.0003404]
[1739850125803,1.31512922,96466.0,96465.0,0.0003404]
[1739850126175,1.31712922,96466.0,96465.0,0.0003404]
[1739850128764,1.31512922,96466.0,96465.0,0.0003404]
[1739850128970,1.31312922,96466.0,96465.0,0.0003404]
[1739850129234,1.31512922,96466.0,96465.0,0.0003404]
[1739850129373,1.31712922,96466.0,96465.0,0.0003404]
[1739850131994,0.78130322,96466.0,96465.0,0.0003404]
[1739850132196,0.54366122,96466.0,96465.0,0.0003404]
[1739850132435,4.52185822,96466.0,96465.0,0.0003404]
[1739850132867,4.50390022,96466.0,96465.0,0.0003404]
[1739850133425,3.75986122,96466.0,96465.0,0.0003404]
[1739850134178,3.75586122,96466.0,96465.0,0.0003404]
[1739850134332,3.75786122,96466.0,96465.0,0.0003404]
[1739850134538,3.75986122,96466.0,96465.0,0.0003404]
[1739850134979,3.75786122,96466.0,96465.0,0.0003404]
[1739850135156,3.75586122,96466.0,96465.0,0.0003404]
[1739850135392,3.75786122,96466.0,96465.0,0.0003404]
[1739850135703,3.75986122,96466.0,96465.0,0.0003404]
[1739850137636,3.75786122,96466.0,96465.0,0.0003404]
[1739850138177,3.75786122,96466.0,96465.0,0.0793404]
[1739850138178,3.16723122,96466.0,96465.0,0.0793404]
[1739850138542,2.1950072,96466.0,96465.0,0.0793404]
[1739850138701,2.1950072,96466.0,96465.0,0.1290404]
[1739850139094,0.5143052,96466.0,96465.0,0.1290404]
[1739850139288,0.2088102,96466.0,96465.0,0.1290404]
[1739850139493,0.8490082,96466.0,96465.0,0.1290404]
[1739850140110,0.8470082,96466.0,96465.0,0.1290404]
[1739850140345,0.8490082,96466.0,96465.0,0.1290404]
[1739850140541,0.8480082,96466.0,96465.0,0.1290404]
[1739850140883,0.8490082,96466.0,96465.0,0.1290404]
[1739850141276,0.8480082,96466.0,96465.0,0.1290404]
[1739850141472,0.8460082,96466.0,96465.0,0.1300404]
[1739850141679,0.8460082,96466.0,96465.0,0.1310404]
[1739850143025,0.8460082,96466.0,96465.0,0.1300404]
[1739850143793,0.8460082,96466.0,96465.0,0.1290404]
[1739850143999,0.9960082,96466.0,96465.0,0.0003404]
[1739850144589,0.73672006,96466.0,96465.0,0.0003404]
[1739850144925,0.76507608,96466.0,96465.0,0.0003404]
[1739850145123,0.89874323,96466.0,96465.0,0.0003404]
[1739850145741,0.90074323,96466.0,96465.0,0.0003404]
[1739850146109,0.90091343,96466.0,96465.0,0.0003404]
[1739850146913,0.91515797,96466.0,96465.0,0.0003404]
[1739850147119,0.91720178,96466.0,96465.0,0.0003404]
[1739850147496,0.92020178,96466.0,96465.0,0.0003404]
[1739850148700,1.07569678,96466.0,96465.0,0.0003404]
[1739850149286,4.38112178,96466.0,96465.0,0.0003404]
[1739850149486,5.40367072,96466.0,96465.0,0.0003404]
[1739850151421,5.50617437,96466.0,96465.0,0.0003404]
[1739850151625,5.71185437,96466.0,96465.0,0.0003404]
[1739850152245,5.60935072,96466.0,96465.0,4e-07]
[1739850152447,0.69541218,96466.0,96465.0,4e-07]
[1739850152823,0.69841218,96466.0,96465.0,4e-07]
[1739850153027,0.69641218,96466.0,96465.0,4e-07]
[1739850153235,0.69341218,96466.0,96465.0,4e-07]
[1739850153582,0.67941218,96466.0,96465.0,4e-07]
[1739850153798,0.67741218,96466.0,96465.0,4e-07]
[1739850153942,0.68241218,96466.0,96465.0,4e-07]
[1739850154150,0.67841218,96466.0,96465.0,4e-07]
[1739850154369,0.68241218,96466.0,96465.0,0.0010004]
[1739850154747,5.59710618,96466.0,96465.0,0.0010004]
[1739850156958,5.61335225,96466.0,96465.0,0.0010004]
[1739850158947,5.63561964,96466.0,96465.0,4e-07]
[1739850159085,1.79695325,96466.0,96465.0,4e-07]
[1739850159286,0.69865825,96466.0,96465.0,4e-07]
[1739850166113,0.68241218,96466.0,96465.0,4e-07]
[1739850170128,0.68241218,96466.0,96465.0,0.0003408]
[1739850170267,5.59710618,96466.0,96465.0,0.0003408]
[1739850170717,1.78070718,96466.0,96465.0,0.0003408]
[1739850170962,5.59710618,96466.0,96465.0,0.0003408]
[1739850174618,5.69960983,96466.0,96465.0,0.0003408]
[1739850175338,5.59710618,96466.0,96465.0,0.0003408]
[1739850179968,5.59740618,96466.0,96465.0,0.0003408]
[1739850180172,5.62857718,96466.0,96465.0,0.0003408]
[1739850181413,5.59741368,96466.0,96465.0,0.0003408]
[1739850181571,5.60022116,96466.0,96465.0,0.0003404]
[1739850184220,5.60022116,96466.0,96465.0,4e-07]
[1739850184439,0.78803081,96466.0,96465.0,4e-07]
[1739850184629,0.68552716,96466.0,96465.0,4e-07]
[1739850187445,0.65436366,96466.0,96465.0,4e-07]
[1739850188276,0.68552716,96466.0,96465.0,4e-07]
[1739850190688,0.37981815,96466.0,96465.0,4e-07]
[1739850191105,0.34865465,96466.0,96465.0,4e-07]
[1739850191861,0.50414965,96466.0,96465.0,4e-07]
[1739850194415,0.65431985,96466.0,96465.0,4e-07]
[1739850198925,0.68221423,96466.0,96465.0,4e-07]
[1739850200919,0.77932491,96466.0,96465.0,4e-07]
[1739850201153,0.68221423,96466.0,96465.0,4e-07]
[1739850203282,0.68221423,96466.0,96465.0,0.0759004]
[1739850203457,5.59690823,96466.0,96465.0,0.0759004]
[1739850204410,5.56901385,96466.0,96465.0,0.0759004]
[1739850206129,4.82008285,96466.0,96465.0,0.0759004]
[1739850211708,1.75261485,96466.0,96465.0,0.0759004]
[1739850212919,5.56901385,96466.0,96465.0,0.0744014]
[1739850213122,5.59690823,96466.0,96465.0,0.0744014]
[1739850218107,5.59690823,96466.0,96465.0,0.074742]
[1739850218628,5.61315386,96466.0,96465.0,0.074742]
[1739850222931,5.59690823,96466.0,96465.0,0.074742]
[1739850224709,5.59690823,96466.0,96465.0,0.0003406]
[1739850225110,5.69941188,96466.0,96465.0,0.0003406]
[1739850225313,0.305525,96447.0,96446.0,0.0003406]
[1739850225538,0.155525,96447.0,96446.0,0.0003406]
[1739850225749,0.155525,96447.0,96403.0,0.0003404]
[1739850225750,0.22,96446.0,96403.0,0.0003404]
[1739850225953,0.155569,96420.0,96403.0,0.0003404]
[1739850226398,1.748431,96420.0,96403.0,0.0003404]
[1739850226603,1.736611,96420.0,96403.0,0.0003404]
[1739850227004,1.70623,96420.0,96403.0,0.0003404]
[1739850227179,1.70623,96420.0,96419.0,0.08617348]
[1739850227386,1.70623,96420.0,96419.0,0.08621729]
[1739850227949,0.25602313,96447.0,96419.0,0.08621729]
[1739850228179,0.155569,96420.0,96419.0,0.21271729]
[1739850228379,0.619811,96420.0,96419.0,0.21271729]
[1739850228587,0.604834,96420.0,96419.0,0.21271729]
[1739850228799,0.604834,96420.0,96419.0,0.21071729]
[1739850229001,0.53493,96420.0,96419.0,0.21071729]
[1739850229306,0.508951,96420.0,96419.0,0.21071729]
[1739850229724,0.508951,96420.0,96419.0,0.21105789]
[1739850230067,0.408202,96420.0,96419.0,0.21105789]
[1739850230290,0.07771065,96429.0,96419.0,0.18706154]
[1739850230491,0.01297756,96422.0,96421.0,0.1439]
[1739850230620,0.07771065,96429.0,96424.0,0.1239]
[1739850230992,0.07771065,96434.0,96426.0,0.1239]
[1739850231304,0.155556,96428.0,96427.0,0.1239]
[1739850231513,0.155554,96430.0,96425.0,0.10250365]
[1739850231688,0.01289396,96428.0,96426.0,0.1256]
[1739850231857,0.01289396,96428.0,96425.0,0.10250365]
[1739850231858,0.155557,96428.0,96427.0,0.1256]
[1739850234377,0.16824381,96428.0,96427.0,0.1256]
[1739850235455,0.01268681,96428.0,96427.0,0.1256]
[1739850235662,0.07771065,96440.0,96427.0,0.12250365]
[1739850235834,0.155545,96435.0,96428.0,0.10250365]
[1739850236036,0.170576,96434.0,96431.0,0.0799]
[1739850236274,0.138917,96433.0,96432.0,0.10250365]
[1739850236475,0.0126032,96433.0,96432.0,0.10250365]
[1739850236680,0.162695,96433.0,96432.0,0.10250365]
[1739850236905,0.004,96440.0,96434.0,0.02]
[1739850237103,0.057,96439.0,96436.0,0.1272]
[1739850237257,0.057,96438.0,96437.0,0.18240365]
[1739850237454,0.15553,96444.0,96438.0,0.0799]
[1739850237660,0.202949,96443.0,96439.0,0.0807]
[1739850238581,0.137208,96443.0,96439.0,0.0797]
[1739850238941,0.137208,96443.0,96438.0,0.10250365]
[1739850239126,0.139211,96443.0,96438.0,0.10250365]
[1739850240249,0.139211,96443.0,96439.0,0.0462]
[1739850240402,0.139211,96443.0,96439.0,0.0452]
[1739850241445,0.01289777,96444.0,96439.0,0.0452]
[1739850241652,0.15,96447.0,96440.0,0.0818]
[1739850241852,0.207367,96448.0,96440.0,0.0818]
[1739850241853,0.155529,96445.0,96440.0,0.0818]
[1739850242055,0.410216,96444.0,96440.0,0.0818]
[1739850242255,0.343252,96444.0,96440.0,0.0818]
[1739850242460,0.264264,96444.0,96441.0,0.10250365]
[1739850242658,0.155528,96446.0,96442.0,0.0782]
[1739850242869,0.308635,96445.0,96444.0,0.0475]
[1739850243066,0.0001703,96474.0,96445.0,0.0829]
[1739850243261,0.145381,96450.0,96446.0,0.0829]
[1739850244693,0.15,96452.0,96446.0,0.0829]
[1739850244887,0.15,96452.0,96446.0,0.18640365]
[1739850245137,0.106421,96450.0,96449.0,0.0818]
[1739850245701,0.15,96452.0,96449.0,0.0818]
[1739850246372,0.15,96452.0,96450.0,0.0803]
[1739850246535,0.3247642,96451.0,96450.0,0.0803]
[1739850246735,0.2808493,96451.0,96450.0,0.0803]
[1739850246936,0.2555493,96451.0,96450.0,0.0803]
[1739850247340,0.2555493,96451.0,96450.0,0.18280365]
[1739850248371,0.1501703,96451.0,96450.0,0.18280365]
[1739850248950,0.3130853,96451.0,96450.0,0.18280365]
[1739850249292,0.2877853,96451.0,96450.0,0.18280365]
[1739850249495,0.2566213,96451.0,96450.0,0.18280365]